fUSD/lending_fUSD_20250614
["ID","MTS","AMOUNT","RATE_DAILY","PERIOD"]
[365827774,1749942633720,-150.0,0.00017,2]
[365827776,1749942633729,-191.75,0.00017,2]
[365827778,1749942633739,-250.0,0.00017,2]
[365827780,1749942633748,-192.97,0.00017,2]
[365827782,1749942633758,-240.448,0.00017,2]
[365827784,1749942633767,-218.811,0.00017,2]
[365827786,1749942633776,-291.061,0.00017,2]
[365827788,1749942633786,-250.0,0.00017,2]
[365827790,1749942633796,-253.434,0.00017,2]
[365827792,1749942633805,-184.009,0.00017,2]
[365827794,1749942633816,-243.997,0.00017,2]
[365827796,1749942633825,-204.445,0.00017,2]
[365827798,1749942633836,-200.793,0.00017,2]
[365827800,1749942633846,-158.101,0.00017,2]
[365827802,1749942633856,-637.0,0.00017,2]
[365827804,1749942633865,-802.0,0.00017,2]
[365827806,1749942633875,-1383.641,0.00017,2]
[365827808,1749942633884,-927.0,0.00017,2]
[365827810,1749942633896,-590.0,0.00017,2]
[365827812,1749942633905,-2001.0,0.00017,2]
[365827814,1749942633914,-558.0,0.00017,2]
[365827816,1749942633923,-1673.0,0.00017,2]
[365827818,1749942633933,-2770.70785058,0.00017,2]
[365827820,1749942633944,-78344.97056485,0.00017,2]
[365828184,1749942637651,-444.4724332,0.00016164,2]
[365828186,1749942637661,-199.32756645,0.00016164,2]
[365828197,1749942637760,-110.68830838,0.00016164,2]
[365828199,1749942637770,-155.0,0.0001688,2]
[365828201,1749942637780,-504.0,0.00017,2]
[365828203,1749942637789,-177.18331971,0.00017,2]
[365828213,1749942637872,-5962.32317635,0.00017,2]
[365828215,1749942637884,-2642.94945025,0.00017,2]
[365828218,1749942637895,-7000.0,0.00017,2]
[365828423,1749942639911,-4167.504,0.0001688,2]
[365828425,1749942639921,-1712.16918402,0.00017,2]
[365828427,1749942639932,-288.5754101,0.00017,2]
[365828440,1749942640040,-1148002.12999255,0.00017,2]
[365828453,1749942640157,-405.27546822,0.00017,2]
[365828455,1749942640169,-1252.71985348,0.00017,2]
[365828682,1749942642844,-202.0,0.00015805,2]
[365828685,1749942642853,-369.42083,0.00017,2]
[365828688,1749942642864,-308.33578568,0.00017,2]
[365828691,1749942642874,-62.48512101,0.00017,2]
[365829482,1749942800394,-206.0,0.00015805,2]
[365829483,1749942995381,490.0,0.00025,120]
[365829484,1749943211046,150.0,0.00015822,7]
[365829485,1749943394163,-182.87671386,0.00015815,2]
[365829486,1749943455107,396.13,0.00013699,2]
[365829488,1749943467917,1000.0,0.00025,120]
[365829489,1749943484200,-54.32328614,0.00015815,2]
[365829490,1749943484226,-97.67671386,0.00015819,2]
[365829491,1749943489017,-427.07330176,0.00015819,2]
[365829492,1749943491077,600.0,0.00025,120]
[365829493,1749943492651,-60.21998438,0.00015819,2]
[365829495,1749943601605,202.0,0.0001486,2]
[365829500,1749943644358,-231.26726163,0.00015815,2]
[365829501,1749943646128,-259.68971147,0.00015815,2]
[365829502,1749943650591,-159.67280719,0.00015815,2]
[365829504,1749943652390,-160.44693357,0.00015815,2]
[365829509,1749943655780,-206.88157774,0.00015815,2]
[365829510,1749943658119,-239.09288837,0.00015815,2]
[365829511,1749943659744,-372.76218128,0.00015815,2]
[365829512,1749943662134,-457.74275326,0.00015815,2]
[365829513,1749943665602,-271.64449919,0.00015815,2]
[365829514,1749943667992,-252.69915562,0.00015815,2]
[365829516,1749943670356,-155.54883671,0.00015815,2]
[365829517,1749943673725,-328.95372355,0.00015815,2]
[365829518,1749943675048,-417.95568379,0.00015815,2]
[365829519,1749943676806,-226.22891106,0.00015815,2]
[365829520,1749943678461,-168.83451535,0.00015815,2]
[365829521,1749943700469,-311.09829226,0.00015815,2]
[365829522,1749943702260,-226.97773313,0.00015815,2]
[365829523,1749943704570,-208.88437849,0.00015815,2]
[365829524,1749943706697,-363.11277751,0.00015815,2]
[365829525,1749943710256,249.42,0.00015736,2]
[365829526,1749943719235,-301.27511087,0.00015815,2]
[365829527,1749943720878,-151.0,0.00015815,2]
[365829528,1749943722174,202.0,0.0001486,2]
[365829529,1749943723458,-151.0,0.00015815,2]
[365829530,1749943726502,-280.30693535,0.00015815,2]
[365829531,1749943728357,-202.36822211,0.00015815,2]
[365829532,1749943730602,-245.47048127,0.00015815,2]
[365829533,1749943732226,-175.55145322,0.00015815,2]
[365829534,1749943734810,-271.33394904,0.00015815,2]
[365829535,1749943738241,-209.05865562,0.00015815,2]
[365829536,1749943742735,-191.3333,0.00015815,2]
[365829537,1749943744439,-232.77758568,0.00015814,2]
[365829538,1749943746142,-67.22241432,0.00015814,2]
[365829539,1749943746167,-150.97690366,0.00015815,2]
[365829540,1749943750424,-320.4654626,0.00015815,2]
[365829541,1749943754133,-336.52809682,0.00015815,2]
[365829542,1749943756890,250.0,0.00015775,2]
[365829543,1749943757281,-325.41520263,0.00015815,2]
[365829544,1749943760075,-157.14,0.00015815,2]
[365829545,1749943762954,-310.04151566,0.00015815,2]
[365829546,1749943765696,-201.69563319,0.00015815,2]
[365829547,1749943770560,-194.0,0.00015815,2]
[365829550,1749943772223,-239.88333846,0.00015815,2]
[365829552,1749943774625,-330.03567481,0.00015815,2]
[365829553,1749943777163,-250.0,0.00015815,2]
[365829554,1749943779868,-204.80675857,0.00015815,2]
[365829555,1749943782121,-229.43053621,0.00015815,2]
[365829556,1749943784417,-240.58215207,0.00015815,2]
[365829557,1749943786131,-288.37076245,0.00015815,2]
[365829558,1749943788605,-157.14,0.00015815,2]
[365829559,1749943791767,-271.11647429,0.00015815,2]
[365829560,1749943794720,-188.6546574,0.00015815,2]
[365829561,1749943798289,-251.16177789,0.00015815,2]
[365829562,1749943801945,-249.9819253,0.00015814,2]
[365829563,1749943804394,-219.0701159,0.00015814,2]
[365829564,1749943807948,1000.0,0.00015752,2]
[365829565,1749943808526,-203.1480747,0.00015814,2]
[365829566,1749943810357,-157.88,0.00015814,2]
[365829567,1749943812465,-233.07753849,0.00015814,2]
[365829568,1749943815982,-136.84234561,0.00015814,2]
[365829569,1749943816010,-102.25054276,0.00015815,2]
[365829570,1749943817710,-201.0,0.00015815,2]
[365829571,1749943820193,-260.22767151,0.00015815,2]
[365829572,1749943821908,-347.05597994,0.00015815,2]
[365829573,1749943823592,1032.44567,0.00016,5]
[365829574,1749943823636,1032.44567,0.00016,5]
[365829575,1749943823794,1032.44569,0.00016,5]
[365829576,1749943824183,-231.85590464,0.00015815,2]
[365829577,1749943827160,-157.14,0.00015815,2]
[365829589,1749943831813,-10754.83222579,0.00015815,2]
[365829591,1749943831822,-250.0,0.00015887,2]
[365829593,1749943831832,-287.21230126,0.00015899,2]
[365829595,1749943831841,-202.0,0.0001591,3]
[365829597,1749943831851,-666.0,0.00015924,2]
[365829598,1749943831860,-300.0,0.00015999,2]
[365829600,1749943831870,-1956.87,0.00016,2]
[365829601,1749943831879,-1956.87,0.00016,2]
[365829602,1749943831888,-1956.87,0.00016,2]
[365829603,1749943831897,-1956.87,0.00016,2]
[365829604,1749943831910,-1956.87,0.00016,2]
[365829605,1749943831919,-661.96,0.00016013,2]
[365829606,1749943831930,-500.0,0.00016165,2]
[365829607,1749943831939,-165.7,0.00016213,2]
[365829608,1749943831950,-300.0,0.000163,5]
[365829609,1749943831960,-740.36,0.00016365,2]
[365829610,1749943831969,-600.0,0.000164,5]
[365829611,1749943831980,-207.4,0.00016419,2]
[365829612,1749943831990,-151.0,0.00016419,2]
[365829613,1749943831999,-639.0,0.00016476,2]
[365829614,1749943832009,-169.94,0.00016487,2]
[365829615,1749943832019,-900.0,0.000165,6]
[365829616,1749943832028,-833.63237626,0.00016539,2]
[365829617,1749943832037,-1396.29345827,0.00016558,2]
[365829618,1749943832047,-1200.0,0.000166,6]
[365829619,1749943832056,-151.0,0.00016643,2]
[365829620,1749943832065,-799.287604,0.0001666,2]
[365829621,1749943832075,-168.0,0.0001666,2]
[365829622,1749943832085,-1500.0,0.000167,6]
[365829623,1749943832094,-168.0,0.00016722,2]
[365829624,1749943832104,-168.0,0.00016779,2]
[365829625,1749943832113,-300.0,0.000168,6]
[365829626,1749943832122,-5838.12717434,0.000168,2]
[365829627,1749943832131,-5838.12717406,0.000168,2]
[365829628,1749943832140,-2000.0,0.00016864,2]
[365829629,1749943832149,-811.174,0.00016881,2]
[365829630,1749943832158,-4087.0,0.00016881,2]
[365829631,1749943832167,-155.0,0.00016881,2]
[365829632,1749943832176,-7066.0,0.00016881,2]
[365829633,1749943832185,-1000.0,0.00016885,2]
[365829634,1749943832194,-434.27940363,0.00016885,2]
[365829635,1749943832203,-248.34147057,0.00016886,2]
[365829636,1749943832214,-968.96396635,0.00016886,2]
[365829637,1749943832225,-203.76040892,0.00016886,2]
[365829662,1749943832534,-968.9639663,0.00016888,2]
[365829665,1749943832559,-968.9639663,0.00016889,2]
[365829667,1749943832568,-160.83468592,0.0001689,2]
[365829669,1749943832578,-968.9639663,0.00016891,2]
[365829671,1749943832587,-968.9639663,0.00016892,2]
[365829673,1749943832596,-968.9639663,0.00016894,2]
[365829675,1749943832606,-968.9639663,0.00016895,2]
[365829677,1749943832616,-968.9639663,0.00016897,2]
[365829679,1749943832626,-968.9639663,0.00016898,2]
[365829681,1749943832635,-35007.2614,0.000169,2]
[365829683,1749943832644,-300.0,0.000169,6]
[365829685,1749943832653,-968.9639663,0.000169,2]
[365829687,1749943832662,-970.09403794,0.000169,2]
[365829689,1749943832672,-202.0,0.0001696,4]
[365829691,1749943832681,-563.0,0.00016969,2]
[365829693,1749943832691,-402.34,0.0001697,2]
[365829695,1749943832700,-402.34,0.0001697,2]
[365829697,1749943832710,-402.34,0.0001697,2]
[365829699,1749943832720,-402.34,0.0001697,2]
[365829701,1749943832729,-402.34,0.0001697,2]
[365829703,1749943832738,-361.78374291,0.00016973,2]
[365829705,1749943832747,-500.0,0.00016973,2]
[365829707,1749943832756,-500.0,0.00016973,2]
[365829709,1749943832766,-509.00793203,0.00016973,2]
[365829711,1749943832776,-500.0,0.00016973,2]
[365829713,1749943832785,-500.0,0.00016973,2]
[365829715,1749943832794,-500.0,0.00016973,2]
[365829717,1749943832803,-621.89343269,0.00016973,2]
[365829719,1749943832812,-466.52058523,0.00016979,2]
[365829721,1749943832822,-195.84633502,0.00016979,2]
[365829723,1749943832831,-240.0806131,0.00016979,2]
[365829725,1749943832840,-312236.60317941,0.0001698,2]
[365829727,1749943832853,-7744.56209001,0.0001698,2]
[365829730,1749943832865,-1249.58361904,0.0001698,2]
[365829731,1749943832892,-791.7,0.0001698,2]
[365829732,1749943832904,-5023.00535554,0.0001698,2]
[365829733,1749943832916,-8836.48017089,0.0001698,2]
[365829734,1749943832927,-35661.63690333,0.0001698,2]
[365829735,1749943832939,-450.0,0.0001698,2]
[365829736,1749943832951,-285.71773869,0.0001698,2]
[365829737,1749943832983,-594.4151086,0.0001698,2]
[365829738,1749943832995,-2024.14165359,0.0001698,2]
[365829739,1749943833007,-2791.6271114,0.0001698,2]
[365829740,1749943833018,-1693.6999999,0.0001698,2]
[365829741,1749943833029,-6740.78127798,0.0001698,2]
[365829869,1749943837729,-413.01597433,0.00016888,2]
[365829870,1749943837739,-500.0,0.00016888,2]
[365829871,1749943837749,-500.0,0.00016888,2]
[365829872,1749943837759,-603.73805777,0.00016888,2]
[365829874,1749943837769,-500.0,0.00016888,2]
[365829876,1749943837778,-36350.4287679,0.0001698,2]
[365829881,1749943837934,-254481.47508311,0.0001698,2]
[365829882,1749943837946,-679.93379039,0.0001698,2]
[365830006,1749943840049,-275010.5196108,0.0001698,2]
[365830007,1749943840059,-500.0,0.00016986,2]
[365830008,1749943840068,-500.0,0.00016986,2]
[365830009,1749943840077,-500.0,0.00016986,2]
[365830010,1749943840087,-500.0,0.00016986,2]
[365830011,1749943840097,-500.0,0.00016986,2]
[365830012,1749943840107,-500.0,0.00016986,2]
[365830013,1749943840116,-500.0,0.00016986,2]
[365830014,1749943840125,-500.0,0.00016986,2]
[365830015,1749943840134,-500.0,0.00016986,2]
[365830016,1749943840143,-500.0,0.00016986,2]
[365830017,1749943840152,-500.0,0.00016986,2]
[365830018,1749943840162,-500.0,0.00016986,2]
[365830019,1749943840171,-500.0,0.00016986,2]
[365830020,1749943840180,-500.0,0.00016986,2]
[365830021,1749943840189,-500.0,0.00016986,2]
[365830022,1749943840199,-500.0,0.00016986,2]
[365830023,1749943840209,-500.0,0.00016986,2]
[365830024,1749943840218,-499.1373432,0.00016986,2]
[365830025,1749943840227,-500.0,0.00016986,2]
[365830026,1749943840236,-500.0,0.00016986,2]
[365830027,1749943840246,-500.0,0.00016986,2]
[365830028,1749943840256,-500.0,0.00016986,2]
[365830029,1749943840265,-310.77482697,0.00016986,2]
[365830030,1749943840275,-797.31,0.00016986,2]
[365830031,1749943840286,-1589.78,0.00016986,2]
[365830032,1749943840297,-230.8429529,0.00016991,2]
[365830033,1749943840308,-849.6991265,0.00016991,2]
[365830034,1749943840317,-246.2171618,0.00016991,2]
[365830035,1749943840326,-17087.7735434,0.00016991,2]
[365830036,1749943840336,-324.2880364,0.00016991,2]
[365830037,1749943840346,-2370.69030639,0.00016998,2]
[365830038,1749943840359,-200.98,0.00016999,2]
[365830039,1749943840372,-150.0,0.00016999,2]
[365830040,1749943840383,-150.0,0.00016999,2]
[365830041,1749943840395,-150.0,0.00016999,2]
[365830042,1749943840404,-150.0,0.00016999,2]
[365830043,1749943840415,-500.0,0.00016999,2]
[365830044,1749943840426,-150.0,0.00016999,2]
[365830045,1749943840436,-150.0,0.00016999,2]
[365830046,1749943840447,-150.0,0.00016999,2]
[365830047,1749943840457,-150.0,0.00016999,2]
[365830048,1749943840466,-150.0,0.00016999,2]
[365830049,1749943840476,-300.0,0.00016999,2]
[365830050,1749943840487,-150.0,0.00016999,2]
[365830051,1749943840497,-150.0,0.00016999,2]
[365830052,1749943840506,-300.0,0.00016999,2]
[365830053,1749943840516,-500.0,0.00016999,2]
[365830054,1749943840526,-726.0,0.00016999,2]
[365830055,1749943840536,-150.0,0.00016999,2]
[365830056,1749943840547,-500.0,0.00016999,2]
[365830057,1749943840559,-300.0,0.00016999,2]
[365830058,1749943840568,-150.0,0.00016999,2]
[365830059,1749943840577,-500.0,0.00016999,2]
[365830060,1749943840588,-840538.96708419,0.00017,2]
[365830061,1749943840600,-2642.14771376,0.00017,2]
[365830062,1749943840611,-1214.98276237,0.00017,2]
[365830063,1749943840622,-5180.56506876,0.00017,2]
[365830064,1749943840633,-31455.57136221,0.00017,2]
[365830065,1749943840644,-1781.137005,0.00017,2]
[365830066,1749943840655,-1363.68834929,0.00017,2]
[365830067,1749943840666,-6106.27801381,0.00017,2]
[365830068,1749943840677,-7249.99216898,0.00017,2]
[365830069,1749943841784,-61.55298919,0.00017,2]
[365830070,1749943841809,-551.15622138,0.00017,2]
[365830071,1749943841851,-17390.3986036,0.00017,2]
[365830075,1749943842908,-5183.02836681,0.00017,2]
[365830076,1749943842921,-620.0,0.00017,2]
[365830077,1749943842941,-92526.88567175,0.00017,2]
[365830078,1749943842951,-1166.4,0.00017,2]
[365830079,1749943842962,-138052.15962983,0.00017,2]
[365830080,1749943842973,-16667.59591746,0.00017,2]
[365830081,1749943843066,-174465.45886392,0.00017,2]
[365830082,1749943843193,-853.0,0.00016998,2]
[365830083,1749943843203,-537014.97176301,0.00017,2]
[365830195,1749943847519,-1650.78381267,0.00017,2]
[365830197,1749943847531,-48551.41407419,0.00017,2]
[365830200,1749943847547,-2202.86655458,0.00017,2]
[365830202,1749943847558,-97234.69247466,0.00017,2]
[365830204,1749943847569,-4576.1029701,0.00017,2]
[365830206,1749943847580,-37066.96810108,0.00017,2]
[365830208,1749943847591,-15949.75767,0.00017,2]
[365830210,1749943847603,-5135.3494555,0.00017,2]
[365830319,1749943877170,893.93,0.00014318,2]
[365830321,1749944545012,-204.0,0.00015822,2]
[365830322,1749944546804,-245.92538195,0.00015822,2]
[365830324,1749944550166,-184.44394342,0.00015822,2]
[365830325,1749944552468,-159.19951873,0.00015822,2]
[365830326,1749944552673,390.7,0.00013699,2]
[365830327,1749944555710,-258.5628647,0.00015822,2]
[365830328,1749944559807,-224.25900324,0.00015822,2]
[365830329,1749944562942,-153.00676629,0.00015822,2]
[365830330,1749944565841,-366.15828746,0.00015822,2]
[365830331,1749944574772,-298.44903543,0.00015822,2]
[365830332,1749944576652,-239.09288837,0.00015822,2]
[365830333,1749944578257,-264.1742193,0.00015822,2]
[365830334,1749944581827,-408.92942192,0.00015822,2]
[365830335,1749944585607,-267.81507525,0.00015822,2]
[365830336,1749944588630,-151.90818443,0.00015822,2]
[365830337,1749944591013,-153.58,0.00015822,2]
[365830338,1749944594348,-247.89411148,0.00015822,2]
[365830339,1749944652760,201.0,0.0001501,2]
[365830340,1749944801722,202.0,0.0001501,2]
[365830364,1749944895090,6214.77,0.00015779,2]
[365830365,1749944902778,1000.0,0.00015779,2]
[365830366,1749944972882,150.0,0.00016,5]
[365830367,1749944987740,2999.1969746,0.00024658,120]
[365830368,1749945012010,202.0,0.00015056,2]
[365830369,1749945029725,250.0,0.00015792,2]
[365830370,1749945032005,-239.1,0.00015897,2]
[365830371,1749945032015,-1200.0,0.00015907,2]
[365830372,1749945032025,-1436.41909943,0.00015908,2]
[365830373,1749945032036,-2088.32540325,0.00015908,2]
[365830374,1749945032048,-1809.67967931,0.00015908,2]
[365830375,1749945032165,-565.59,0.00015908,2]
[365830376,1749945032177,-1063.44509394,0.00015908,2]
[365830377,1749945032189,-1606.747242,0.00015908,2]
[365830378,1749945032200,-454.92529219,0.00015908,2]
[365830379,1749945032212,-476.47053834,0.00015908,2]
[365830380,1749945032245,-339.17912446,0.00015908,2]
[365830381,1749945032256,-1886.38084821,0.00015908,2]
[365830382,1749945032267,-559.46319352,0.00015908,2]
[365830383,1749945032279,-684.52012881,0.00015908,2]
[365830384,1749945032302,-600.56056441,0.00015908,2]
[365830385,1749945032334,-2729.8716691,0.00015908,2]
[365830917,1749945037939,-700.45212303,0.00015908,2]
[365830919,1749945037956,-163.49,0.00015922,2]
[365830921,1749945037966,-535.2,0.00015922,2]
[365830923,1749945037976,-819.76,0.00015923,2]
[365830925,1749945037986,-200.0,0.00015998,2]
[365830927,1749945037996,-2758.53,0.00016,2]
[365830929,1749945038006,-2758.53,0.00016,2]
[365830931,1749945038017,-782.22291065,0.00016,2]
[365830939,1749945038087,-1976.30708935,0.00016,2]
[365830942,1749945038097,-2758.53,0.00016,2]
[365830943,1749945038107,-2758.53,0.00016,2]
[365830945,1749945038116,-703.67,0.00016012,2]
[365830947,1749945038126,-1048.95,0.00016032,2]
[365830949,1749945038134,-666.0,0.0001604,2]
[365830951,1749945038144,-202.0,0.00016126,3]
[365830953,1749945038154,-207.4,0.00016149,2]
[365830955,1749945038163,-278.61291065,0.00016165,2]
[365830963,1749945038230,-221.38708935,0.00016165,2]
[365830964,1749945038239,-200.0,0.000164,5]
[365830966,1749945038248,-152.0,0.00016429,3]
[365830968,1749945038259,-500.0,0.000165,6]
[365830969,1749945038268,-893.93,0.00016582,2]
[365830970,1749945038278,-800.0,0.000166,6]
[365830971,1749945038287,-699.376654,0.0001666,2]
[365830972,1749945038297,-719.21974101,0.000167,6]
[365831163,1749945040928,-380.78025899,0.000167,6]
[365831164,1749945040938,-1400.0,0.000168,6]
[365831165,1749945040947,-366.0,0.00016807,2]
[365831166,1749945040957,-366.0,0.00016824,2]
[365831167,1749945040966,-366.0,0.00016842,2]
[365831168,1749945040976,-366.0,0.00016859,2]
[365831169,1749945040986,-2000.0,0.00016864,2]
[365831170,1749945040995,-151.0,0.0001687,2]
[365831171,1749945041005,-500.0,0.0001687,2]
[365831172,1749945041015,-500.0,0.0001687,2]
[365831173,1749945041025,-500.0,0.0001687,2]
[365831174,1749945041034,-500.0,0.0001687,2]
[365831175,1749945041044,-500.0,0.0001687,2]
[365831176,1749945041054,-500.0,0.0001687,2]
[365831177,1749945041064,-500.0,0.0001687,2]
[365831178,1749945041074,-500.0,0.0001687,2]
[365831179,1749945041083,-500.0,0.0001687,2]
[365831180,1749945041093,-500.0,0.0001687,2]
[365831181,1749945041102,-366.0,0.00016877,2]
[365831182,1749945041111,-500.0,0.0001688,2]
[365831183,1749945041120,-366.0,0.00016894,2]
[365831184,1749945041130,-500.0,0.00016899,2]
[365831185,1749945041140,-500.0,0.00016899,2]
[365831186,1749945041150,-558.17930567,0.00016899,2]
[365831187,1749945041160,-500.0,0.00016899,2]
[365831188,1749945041170,-500.0,0.00016899,2]
[365831189,1749945041180,-438.38274054,0.00016899,2]
[365831190,1749945041190,-500.0,0.00016899,2]
[365831191,1749945041200,-4878.69,0.000169,2]
[365831192,1749945041211,-200.0,0.000169,6]
[365831193,1749945041220,-261.54833306,0.000169,2]
[365831194,1749945041230,-209.66174142,0.000169,2]
[365831195,1749945041239,-1000.0,0.000169,2]
[365831196,1749945041249,-5448.91869606,0.000169,2]
[365831197,1749945041259,-239.86338373,0.000169,2]
[365831198,1749945041268,-366.0,0.00016912,2]
[365831199,1749945041278,-516.288,0.00016921,2]
[365831200,1749945041288,-19999.99,0.00016922,2]
[365831201,1749945041297,-29999.99,0.00016922,2]
[365831202,1749945041306,-6647.79,0.00016922,2]
[365831203,1749945041316,-523.46,0.00016922,2]
[365831204,1749945041325,-366.0,0.0001693,2]
[365831205,1749945041335,-366.0,0.00016947,2]
[365831206,1749945041344,-833.63237626,0.00016958,2]
[365831207,1749945041358,-867.9924602,0.0001696,2]
[365831208,1749945041367,-366.0,0.00016965,2]
[365831209,1749945041377,-500.0,0.00016973,2]
[365831210,1749945041386,-500.0,0.00016973,2]
[365831211,1749945041397,-366.0,0.00016982,2]
[365831212,1749945041407,-4473.0431156,0.00016991,2]
[365831213,1749945041417,-761.1647323,0.00016991,2]
[365831214,1749945041427,-12953.1683676,0.00016991,2]
[365831215,1749945041437,-684.1693597,0.00016991,2]
[365831216,1749945041446,-648.939,0.00016997,2]
[365831217,1749945041456,-178.51,0.00016998,2]
[365831218,1749945041466,-150.0,0.00016999,2]
[365831219,1749945041476,-207.58129561,0.00016999,2]
[365831220,1749945041486,-300.0,0.00016999,2]
[365831221,1749945041496,-150.0,0.00016999,2]
[365831222,1749945041505,-150.0,0.00016999,2]
[365831223,1749945041516,-150.0,0.00016999,2]
[365831224,1749945041525,-150.0,0.00016999,2]
[365831225,1749945041534,-150.0,0.00016999,2]
[365831226,1749945041543,-150.0,0.00016999,2]
[365831227,1749945041552,-150.0,0.00016999,2]
[365831228,1749945041561,-500.0,0.00016999,2]
[365831229,1749945041571,-150.0,0.00016999,2]
[365831230,1749945041580,-150.0,0.00016999,2]
[365831231,1749945041590,-150.0,0.00016999,2]
[365831232,1749945041600,-150.0,0.00016999,2]
[365831233,1749945041610,-500.0,0.00016999,2]
[365831234,1749945041620,-500.0,0.00016999,2]
[365831235,1749945041629,-726.0,0.00016999,2]
[365831236,1749945041639,-150.0,0.00016999,2]
[365831237,1749945041649,-300.0,0.00016999,2]
[365831238,1749945041658,-300.0,0.00016999,2]
[365831239,1749945041668,-500.0,0.00016999,2]
[365831240,1749945041677,-150.0,0.00016999,2]
[365831241,1749945041687,-500.0,0.00016999,2]
[365831242,1749945041696,-500.0,0.00016999,2]
[365831243,1749945041706,-168.05642917,0.00016999,2]
[365831244,1749945041715,-386.35113884,0.00016999,2]
[365831245,1749945041725,-500.0,0.00016999,2]
[365831246,1749945041734,-500.0,0.00016999,2]
[365831247,1749945041753,-500.0,0.00016999,2]
[365831248,1749945041764,-500.0,0.00016999,2]
[365831249,1749945041774,-500.0,0.00016999,2]
[365831250,1749945041783,-500.0,0.00016999,2]
[365831251,1749945041792,-500.0,0.00016999,2]
[365831252,1749945041802,-500.0,0.00016999,2]
[365831253,1749945041812,-500.0,0.00016999,2]
[365831254,1749945041821,-500.0,0.00016999,2]
[365831255,1749945041831,-500.0,0.00016999,2]
[365831256,1749945041840,-174.47769597,0.00016999,2]
[365831257,1749945041851,-500.0,0.00016999,2]
[365831258,1749945041860,-500.0,0.00016999,2]
[365831259,1749945041870,-543.23244809,0.00016999,2]
[365831260,1749945041879,-500.0,0.00016999,2]
[365831261,1749945041889,-500.0,0.00016999,2]
[365831262,1749945041899,-199.74120296,0.00016999,2]
[365831263,1749945041908,-500.0,0.00016999,2]
[365831264,1749945041917,-200.0,0.00016999,2]
[365831265,1749945041927,-500.0,0.00016999,2]
[365831266,1749945041936,-450.0,0.00016999,2]
[365831267,1749945041946,-2370.69030639,0.00017,2]
[365831268,1749945041955,-751915.16799359,0.00017,2]
[365831269,1749945042102,-54.85471105,0.00017,2]
[365831280,1749945045973,-18439.0010464,0.00017,2]
[365831281,1749945045985,-80846.48754103,0.00017,2]
[365831282,1749945147469,804.53,0.00014281,2]
[365831285,1749945191485,200.0,0.00015056,2]
[365831286,1749945244498,-154.82617451,0.00015805,2]
[365831287,1749945246352,-226.88,0.00015805,2]
[365831288,1749945249231,-212.59610491,0.00015805,2]
[365831289,1749945252837,-161.62923755,0.00015805,2]
[365831290,1749945255292,-152.19,0.00015805,2]
[365831291,1749945258867,-170.87848303,0.00015805,2]
[365831292,1749945258893,-87.48731187,0.00015805,2]
[365831293,1749945260571,-385.10886944,0.00015805,2]
[365831294,1749945264245,-201.0,0.00015805,2]
[365831295,1749945265415,-159.99181557,0.00015805,2]
[365831296,1749945269362,-211.03075002,0.00015805,2]
[365831297,1749945272129,-34.3812531,0.00015805,2]
[365831298,1749945272157,-192.9751863,0.00015805,2]
[365831299,1749945273905,-203.51,0.00015805,2]
[365831300,1749945278218,-172.36551022,0.00015805,2]
[365831301,1749945280529,-157.3528802,0.00015805,2]
[365831302,1749945282803,-327.5135606,0.00015805,2]
[365831303,1749945284353,-25.28286268,0.00015805,2]